[Event "*** Titled Tuesday Blitz"]
[Site "Chess.com"]
[Date "2020.04.28"]
[Round "6"]
[White "adricalderon8"]
[Black "DinaBelenkaya"]
[Result "1-0"]
[WhiteElo "2414"]
[BlackElo "2192"]
[TimeControl "180+1"]
[EndTime "11:06:40 PDT"]
[Termination "adricalderon8 won by resignation"]

1. e4 {[%clk 0:03:00.9]} 1... d5 {[%clk 0:02:58.8]} 2. exd5 {[%clk 0:02:59.1]}
2... Qxd5 {[%clk 0:02:59.7]} 3. Nf3 {[%clk 0:02:59.5]} 3... Bg4 {[%clk 0:02:57]}
4. Be2 {[%clk 0:02:59.3]} 4... Nc6 {[%clk 0:02:54.3]} 5. d4 {[%clk 0:02:54.5]}
5... O-O-O {[%clk 0:02:53]} 6. c4 {[%clk 0:02:51.7]} 6... Qd7 {[%clk 0:02:33.5]}
7. Be3 {[%clk 0:02:41.5]} 7... Bxf3 {[%clk 0:02:17.5]} 8. Bxf3 {[%clk
0:02:39.4]} 8... Nxd4 {[%clk 0:02:17.9]} 9. Nc3 {[%clk 0:02:08]} 9... Nxf3+
{[%clk 0:01:53.9]} 10. Qxf3 {[%clk 0:02:05.4]} 10... Qc6 {[%clk 0:01:27.1]} 11.
Qxc6 {[%clk 0:01:59.2]} 11... bxc6 {[%clk 0:01:26.8]} 12. Bxa7 {[%clk
0:01:59.2]} 12... Nf6 {[%clk 0:01:21]} 13. O-O {[%clk 0:01:55.5]} 13... e5
{[%clk 0:01:20.5]} 14. Be3 {[%clk 0:01:55.3]} 14... Ng4 {[%clk 0:01:18.1]} 15.
Rfd1 {[%clk 0:01:46.9]} 15... Bb4 {[%clk 0:01:07.2]} 16. Ne4 {[%clk 0:01:40.7]}
16... Nxe3 {[%clk 0:01:02]} 17. fxe3 {[%clk 0:01:36.6]} 17... f5 {[%clk
0:00:58.2]} 18. Ng5 {[%clk 0:01:34.8]} 18... Rd2 {[%clk 0:00:50.4]} 19. Rxd2
{[%clk 0:01:32.9]} 19... Bxd2 {[%clk 0:00:50.2]} 20. Kf2 {[%clk 0:01:33.6]}
20... f4 {[%clk 0:00:45.9]} 21. exf4 {[%clk 0:01:30]} 21... exf4 {[%clk
0:00:39.5]} 22. Rd1 {[%clk 0:01:27.3]} 22... Be3+ {[%clk 0:00:37.4]} 23. Kf3
{[%clk 0:01:25.2]} 23... h6 {[%clk 0:00:28.3]} 24. Ne6 {[%clk 0:01:21.4]} 24...
g5 {[%clk 0:00:26.5]} 25. b4 {[%clk 0:01:17.1]} 25... Re8 {[%clk 0:00:26]} 26.
Ng7 {[%clk 0:01:15.6]} 26... Re5 {[%clk 0:00:22.1]} 27. a4 {[%clk 0:01:08.3]}
27... c5 {[%clk 0:00:18.1]} 28. b5 {[%clk 0:01:07.9]} 28... Bd4 {[%clk
0:00:17.7]} 29. Rd3 {[%clk 0:01:08]} 29... Kb7 {[%clk 0:00:07.1]} 30. a5 {[%clk
0:01:06.2]} 30... Re1 {[%clk 0:00:07.1]} 31. Nf5 {[%clk 0:01:03.1]} 31... Rf1+
{[%clk 0:00:05.8]} 32. Ke4 {[%clk 0:01:02.5]} 32... Re1+ {[%clk 0:00:05]} 33.
Kf3 {[%clk 0:00:59.6]} 33... Rf1+ {[%clk 0:00:05]} 34. Kg4 {[%clk 0:00:59.5]}
34... Rf2 {[%clk 0:00:04.5]} 35. Kh3 {[%clk 0:00:52.3]} 35... Ra2 {[%clk
0:00:03.9]} 36. a6+ {[%clk 0:00:49.9]} 36... Kb6 {[%clk 0:00:04]} 37. Nxd4
{[%clk 0:00:50.4]} 37... cxd4 {[%clk 0:00:03.9]} 38. Rxd4 {[%clk 0:00:51.3]}
38... Ra4 {[%clk 0:00:03]} 39. c5+ {[%clk 0:00:49]} 39... Kxb5 {[%clk
0:00:02.4]} 40. Rxa4 {[%clk 0:00:49.2]} 40... Kxa4 {[%clk 0:00:02]} 41. a7
{[%clk 0:00:49.6]} 41... Kb4 {[%clk 0:00:02.7]} 42. a8=Q {[%clk 0:00:50.4]}
42... Kxc5 {[%clk 0:00:03.3]} 1-0

[Event "*** Titled Tuesday Blitz"]
[Site "Chess.com"]
[Date "2020.04.28"]
[Round "6"]
[White "shyam"]
[Black "ehrenfeld"]
[Result "1-0"]
[WhiteElo "2692"]
[BlackElo "2496"]
[TimeControl "180+1"]
[EndTime "11:06:43 PDT"]
[Termination "shyam won on time"]

1. e4 {[%clk 0:03:00.9]} 1... e5 {[%clk 0:02:53.5]} 2. Nf3 {[%clk 0:03:00.3]}
2... Nc6 {[%clk 0:02:53]} 3. d4 {[%clk 0:03:00.1]} 3... exd4 {[%clk 0:02:52.5]}
4. Bc4 {[%clk 0:03:00.7]} 4... Nf6 {[%clk 0:02:51.5]} 5. e5 {[%clk 0:03:01.2]}
5... d5 {[%clk 0:02:51.2]} 6. Bb5 {[%clk 0:03:01.5]} 6... Ne4 {[%clk 0:02:50.6]}
7. Nxd4 {[%clk 0:03:01.9]} 7... Bc5 {[%clk 0:02:50.1]} 8. Bxc6+ {[%clk 0:03:02]}
8... bxc6 {[%clk 0:02:48.8]} 9. Be3 {[%clk 0:03:02.9]} 9... O-O {[%clk
0:02:01.9]} 10. Nd2 {[%clk 0:02:58.6]} 10... Qe8 {[%clk 0:01:37.4]} 11. Nxe4
{[%clk 0:02:37.6]} 11... dxe4 {[%clk 0:01:36.9]} 12. O-O {[%clk 0:02:37.4]}
12... Bb6 {[%clk 0:01:31.4]} 13. Qh5 {[%clk 0:02:26]} 13... f5 {[%clk
0:01:22.1]} 14. Qxe8 {[%clk 0:02:19.7]} 14... Rxe8 {[%clk 0:01:22]} 15. Nxc6
{[%clk 0:02:18.5]} 15... Re6 {[%clk 0:01:18.7]} 16. Nd4 {[%clk 0:02:13.7]} 16...
Rxe5 {[%clk 0:01:16.5]} 17. Rad1 {[%clk 0:02:13.6]} 17... Ba6 {[%clk 0:01:15.3]}
18. Rfe1 {[%clk 0:02:05]} 18... Rf8 {[%clk 0:01:08.4]} 19. Bf4 {[%clk
0:01:56.9]} 19... Re7 {[%clk 0:01:05.6]} 20. Nc6 {[%clk 0:01:51.5]} 20... Re6
{[%clk 0:01:02.3]} 21. Nb4 {[%clk 0:01:49.4]} 21... Bb7 {[%clk 0:01:01.4]} 22.
Nd5 {[%clk 0:01:42.4]} 22... Bxd5 {[%clk 0:00:57.1]} 23. Rxd5 {[%clk 0:01:41.9]}
23... h6 {[%clk 0:00:56.6]} 24. h4 {[%clk 0:01:41.4]} 24... Kf7 {[%clk
0:00:43.2]} 25. h5 {[%clk 0:01:40]} 25... Kf6 {[%clk 0:00:27.1]} 26. c4 {[%clk
0:01:35.6]} 26... c6 {[%clk 0:00:23.4]} 27. Rd7 {[%clk 0:01:34.1]} 27... Rf7
{[%clk 0:00:23.8]} 28. Rxf7+ {[%clk 0:01:15.4]} 28... Kxf7 {[%clk 0:00:23.3]}
29. Kf1 {[%clk 0:01:16.3]} 29... Re7 {[%clk 0:00:20.5]} 30. Rd1 {[%clk
0:01:14.5]} 30... Ke6 {[%clk 0:00:20.2]} 31. Ke2 {[%clk 0:01:13.7]} 31... Rd7
{[%clk 0:00:20.4]} 32. Rxd7 {[%clk 0:01:11.1]} 32... Kxd7 {[%clk 0:00:19.2]} 33.
Be5 {[%clk 0:01:10.5]} 33... Bd8 {[%clk 0:00:16.1]} 34. Bxg7 {[%clk 0:01:09.9]}
34... Bg5 {[%clk 0:00:16.3]} 35. f3 {[%clk 0:01:06.3]} 35... Ke6 {[%clk
0:00:15.2]} 36. g3 {[%clk 0:01:03.2]} 36... exf3+ {[%clk 0:00:14]} 37. Kxf3
{[%clk 0:01:03.1]} 37... Kd6 {[%clk 0:00:13.9]} 38. Bd4 {[%clk 0:01:01]} 38...
a6 {[%clk 0:00:13.9]} 39. Be3 {[%clk 0:00:57.9]} 39... Ke6 {[%clk 0:00:11]} 40.
Bxg5 {[%clk 0:00:54.3]} 40... hxg5 {[%clk 0:00:10.6]} 41. b4 {[%clk 0:00:52.9]}
1-0

[Event "*** Titled Tuesday Blitz"]
[Site "Chess.com"]
[Date "2020.04.28"]
[Round "6"]
[White "Saloni1299"]
[Black "2346PL"]
[Result "1-0"]
[WhiteElo "2338"]
[BlackElo "2479"]
[TimeControl "180+1"]
[EndTime "11:06:45 PDT"]
[Termination "Saloni1299 won on time"]

1. e4 {[%clk 0:03:00.9]} 1... c5 {[%clk 0:02:59.9]} 2. Nf3 {[%clk 0:03:01]} 2...
Nf6 {[%clk 0:03:00.5]} 3. d4 {[%clk 0:03:01.5]} 3... Nxe4 {[%clk 0:03:00.4]} 4.
Bd3 {[%clk 0:02:54.5]} 4... d5 {[%clk 0:02:59.9]} 5. Qe2 {[%clk 0:02:52.2]} 5...
Nf6 {[%clk 0:02:58.3]} 6. dxc5 {[%clk 0:02:51.2]} 6... e6 {[%clk 0:02:58]} 7. b4
{[%clk 0:02:50]} 7... a5 {[%clk 0:02:57.4]} 8. c3 {[%clk 0:02:50.1]} 8... axb4
{[%clk 0:02:55.9]} 9. cxb4 {[%clk 0:02:49.9]} 9... b6 {[%clk 0:02:56.1]} 10. Be3
{[%clk 0:02:43.3]} 10... bxc5 {[%clk 0:02:54.4]} 11. bxc5 {[%clk 0:02:43]} 11...
Qa5+ {[%clk 0:02:48.2]} 12. Qd2 {[%clk 0:02:42.8]} 12... Bxc5 {[%clk 0:02:42.5]}
13. O-O {[%clk 0:02:39]} 13... Qxd2 {[%clk 0:02:40.3]} 14. Bxd2 {[%clk
0:02:38.2]} 14... O-O {[%clk 0:02:37.8]} 15. Rc1 {[%clk 0:02:35.9]} 15... Bd6
{[%clk 0:02:29.5]} 16. Nc3 {[%clk 0:02:35.6]} 16... Ba6 {[%clk 0:02:27.1]} 17.
Nb5 {[%clk 0:02:35.6]} 17... Bxb5 {[%clk 0:02:24.3]} 18. Bxb5 {[%clk 0:02:35.1]}
18... Nbd7 {[%clk 0:02:16.7]} 19. a4 {[%clk 0:02:33.4]} 19... Ne5 {[%clk
0:02:09.9]} 20. Nd4 {[%clk 0:02:27.8]} 20... Ne4 {[%clk 0:02:06.3]} 21. Be1
{[%clk 0:02:25.1]} 21... Bc5 {[%clk 0:01:56.5]} 22. Nc6 {[%clk 0:02:15.8]} 22...
Nxc6 {[%clk 0:01:34.8]} 23. Bxc6 {[%clk 0:02:15.2]} 23... Ra7 {[%clk 0:01:35.3]}
24. Kf1 {[%clk 0:02:13.2]} 24... Bd4 {[%clk 0:01:26.3]} 25. Ra2 {[%clk
0:02:10.6]} 25... Rc8 {[%clk 0:01:20]} 26. f3 {[%clk 0:02:08.1]} 26... Nc3
{[%clk 0:01:09.8]} 27. Rb2 {[%clk 0:01:51.8]} 27... Nxa4 {[%clk 0:01:02.5]} 28.
Bxa4 {[%clk 0:01:48.2]} 28... Rca8 {[%clk 0:00:41.4]} 29. Rb4 {[%clk 0:01:48]}
29... Be3 {[%clk 0:00:34.5]} 30. Rc6 {[%clk 0:01:41.1]} 30... h5 {[%clk
0:00:33.6]} 31. Bc2 {[%clk 0:01:39]} 31... Ra1 {[%clk 0:00:31.6]} 32. Ke2 {[%clk
0:01:37.4]} 32... Bg1 {[%clk 0:00:29.4]} 33. h3 {[%clk 0:01:35.2]} 33... g6
{[%clk 0:00:29.9]} 34. Bc3 {[%clk 0:01:26.1]} 34... R1a2 {[%clk 0:00:24]} 35.
Bf6 {[%clk 0:01:25.9]} 35... Bh2 {[%clk 0:00:17.4]} 36. Rb3 {[%clk 0:01:21.6]}
36... Bg3 {[%clk 0:00:12.3]} 37. Rbc3 {[%clk 0:01:20.4]} 37... Kh7 {[%clk
0:00:09.3]} 38. Rc8 {[%clk 0:01:20]} 38... e5 {[%clk 0:00:07]} 39. R3c7 {[%clk
0:01:16.5]} 39... e4 {[%clk 0:00:01.7]} 40. Rxf7+ {[%clk 0:01:10.8]} 40... Kh6
{[%clk 0:00:02.6]} 41. Rxa8 {[%clk 0:01:09.2]} 41... Rxa8 {[%clk 0:00:01.7]} 42.
fxe4 {[%clk 0:01:09.3]} 42... dxe4 {[%clk 0:00:02]} 43. Bxe4 {[%clk 0:01:09.1]}
43... Re8 {[%clk 0:00:01.9]} 44. Kf3 {[%clk 0:01:08.5]} 44... Bd6 {[%clk
0:00:02.8]} 45. Rd7 {[%clk 0:01:06.6]} 45... Bc5 {[%clk 0:00:02.5]} 46. g4
{[%clk 0:01:06.7]} 46... hxg4+ {[%clk 0:00:02]} 47. hxg4 {[%clk 0:01:07.3]} 1-0

[Event "*** Titled Tuesday Blitz"]
[Site "Chess.com"]
[Date "2020.04.28"]
[Round "6"]
[White "zabivol_mc"]
[Black "shav3184"]
[Result "1-0"]
[WhiteElo "2457"]
[BlackElo "2282"]
[TimeControl "180+1"]
[EndTime "11:06:46 PDT"]
[Termination "zabivol_mc won by resignation"]

1. Nf3 {[%clk 0:02:59.6]} 1... d5 {[%clk 0:02:57.9]} 2. g3 {[%clk 0:02:59.9]}
2... Nf6 {[%clk 0:02:56]} 3. Bg2 {[%clk 0:03:00.5]} 3... Bf5 {[%clk 0:02:55.8]}
4. d3 {[%clk 0:02:59.2]} 4... e6 {[%clk 0:02:53.5]} 5. O-O {[%clk 0:02:58.5]}
5... Be7 {[%clk 0:02:50.1]} 6. c4 {[%clk 0:02:58.3]} 6... c6 {[%clk 0:02:48.4]}
7. cxd5 {[%clk 0:02:58.2]} 7... exd5 {[%clk 0:02:48.1]} 8. Qb3 {[%clk
0:02:42.6]} 8... Qb6 {[%clk 0:02:44.1]} 9. Qc2 {[%clk 0:02:42.5]} 9... h6 {[%clk
0:02:37.4]} 10. Nc3 {[%clk 0:02:42]} 10... O-O {[%clk 0:02:34.1]} 11. e4 {[%clk
0:02:42.1]} 11... Bh7 {[%clk 0:02:30.2]} 12. Be3 {[%clk 0:02:34.1]} 12... Qd8
{[%clk 0:02:25.6]} 13. exd5 {[%clk 0:02:12.6]} 13... Nxd5 {[%clk 0:02:17.6]} 14.
Nxd5 {[%clk 0:02:12]} 14... Qxd5 {[%clk 0:02:08.3]} 15. Rfd1 {[%clk 0:02:09.3]}
15... Qd6 {[%clk 0:01:39.1]} 16. Qb3 {[%clk 0:02:08]} 16... Nd7 {[%clk
0:01:24.5]} 17. d4 {[%clk 0:02:05]} 17... Nb6 {[%clk 0:01:17.9]} 18. Bf4 {[%clk
0:01:52.3]} 18... Qd5 {[%clk 0:01:12.6]} 19. Qe3 {[%clk 0:01:29.2]} 19... Qd8
{[%clk 0:00:54.8]} 20. Qc1 {[%clk 0:01:13.1]} 20... Nd5 {[%clk 0:00:53.3]} 21.
Bd2 {[%clk 0:01:13.2]} 21... Bf6 {[%clk 0:00:38.9]} 22. Ne5 {[%clk 0:01:12.8]}
22... Re8 {[%clk 0:00:29]} 23. Re1 {[%clk 0:01:12.3]} 23... Qb6 {[%clk
0:00:20.4]} 24. Bc3 {[%clk 0:00:54.3]} 24... Nxc3 {[%clk 0:00:19.2]} 25. bxc3
{[%clk 0:00:52.3]} 25... Rad8 {[%clk 0:00:19.1]} 26. Qa3 {[%clk 0:00:38.9]}
26... c5 {[%clk 0:00:18.4]} 27. dxc5 {[%clk 0:00:35.2]} 27... Qc7 {[%clk
0:00:18.6]} 28. Nc4 {[%clk 0:00:33]} 28... Rxe1+ {[%clk 0:00:16.4]} 29. Rxe1
{[%clk 0:00:32.6]} 29... Bg6 {[%clk 0:00:15]} 30. Nd6 {[%clk 0:00:29.4]} 30...
Bxc3 {[%clk 0:00:12.1]} 31. Nb5 {[%clk 0:00:20.6]} 1-0

[Event "*** Titled Tuesday Blitz"]
[Site "Chess.com"]
[Date "2020.04.28"]
[Round "6"]
[White "GoValya"]
[Black "ChelsieMonica"]
[Result "0-1"]
[WhiteElo "2150"]
[BlackElo "2337"]
[TimeControl "180+1"]
[EndTime "11:06:48 PDT"]
[Termination "ChelsieMonica won by resignation"]

1. d4 {[%clk 0:03:00.9]} 1... Nf6 {[%clk 0:02:29]} 2. Nf3 {[%clk 0:03:00.4]}
2... e6 {[%clk 0:02:28.5]} 3. g3 {[%clk 0:03:00.5]} 3... Be7 {[%clk 0:02:27.5]}
4. Bg2 {[%clk 0:03:00.8]} 4... O-O {[%clk 0:02:28.1]} 5. O-O {[%clk 0:03:01.7]}
5... d5 {[%clk 0:02:28.2]} 6. Nbd2 {[%clk 0:03:00.9]} 6... c5 {[%clk 0:02:22.2]}
7. e3 {[%clk 0:03:00.3]} 7... Nc6 {[%clk 0:02:20.8]} 8. c4 {[%clk 0:03:00.2]}
8... cxd4 {[%clk 0:02:19.3]} 9. exd4 {[%clk 0:02:59.7]} 9... b6 {[%clk
0:02:18.3]} 10. b3 {[%clk 0:02:55.2]} 10... Ba6 {[%clk 0:02:17.6]} 11. Bb2
{[%clk 0:02:54]} 11... Rc8 {[%clk 0:02:17.2]} 12. Rc1 {[%clk 0:02:53.5]} 12...
Nb4 {[%clk 0:02:16.5]} 13. Ne5 {[%clk 0:02:49.5]} 13... Nxa2 {[%clk 0:01:53.7]}
14. Ra1 {[%clk 0:02:45.1]} 14... Nb4 {[%clk 0:01:53.7]} 15. Bc3 {[%clk
0:02:40.4]} 15... Bb7 {[%clk 0:01:48.8]} 16. Bxb4 {[%clk 0:02:37.1]} 16... Bxb4
{[%clk 0:01:48.2]} 17. Rxa7 {[%clk 0:02:37]} 17... Rb8 {[%clk 0:01:43.1]} 18.
Qe2 {[%clk 0:02:29.7]} 18... Qc8 {[%clk 0:01:30.7]} 19. Rc1 {[%clk 0:02:25.5]}
19... Ra8 {[%clk 0:01:29.1]} 20. Rxa8 {[%clk 0:02:20.6]} 20... Qxa8 {[%clk
0:01:27.7]} 21. c5 {[%clk 0:02:18]} 21... Qa2 {[%clk 0:01:21.3]} 22. c6 {[%clk
0:01:52.7]} 22... Ba6 {[%clk 0:01:20.5]} 23. Nd3 {[%clk 0:01:11.8]} 23... Qxd2
{[%clk 0:01:11.5]} 24. Qxd2 {[%clk 0:01:11.6]} 24... Bxd2 {[%clk 0:01:11.4]} 25.
Rc2 {[%clk 0:01:06.5]} 25... Bxd3 {[%clk 0:01:11.5]} 26. Rxd2 {[%clk 0:01:06.5]}
26... Bb5 {[%clk 0:01:11]} 27. c7 {[%clk 0:01:04.7]} 27... Rc8 {[%clk 0:01:11]}
28. Rc2 {[%clk 0:01:04.8]} 28... Kf8 {[%clk 0:01:10.5]} 29. h3 {[%clk
0:01:02.9]} 29... Ke7 {[%clk 0:01:10.6]} 30. g4 {[%clk 0:01:03.1]} 30... Ne8
{[%clk 0:01:09.1]} 31. f4 {[%clk 0:01:01]} 31... Rxc7 {[%clk 0:01:09.3]} 32. Rd2
{[%clk 0:01:00.4]} 32... Rc1+ {[%clk 0:01:08.6]} 33. Kh2 {[%clk 0:01:00.2]}
33... Nd6 {[%clk 0:01:06.7]} 34. f5 {[%clk 0:00:58.2]} 34... Ne4 {[%clk
0:01:05.4]} 35. Ra2 {[%clk 0:00:54.1]} 35... Rc7 {[%clk 0:01:01.4]} 36. fxe6
{[%clk 0:00:48.9]} 36... fxe6 {[%clk 0:01:00.8]} 37. Bf3 {[%clk 0:00:47.3]}
37... Kd6 {[%clk 0:01:00.8]} 38. h4 {[%clk 0:00:46.8]} 38... h6 {[%clk
0:00:58.9]} 39. Kg2 {[%clk 0:00:45.4]} 39... g5 {[%clk 0:00:58.9]} 40. hxg5
{[%clk 0:00:44.6]} 40... hxg5 {[%clk 0:00:59.8]} 41. Rb2 {[%clk 0:00:39.1]}
41... Nc3 {[%clk 0:00:55.1]} 42. Rf2 {[%clk 0:00:35]} 42... Bd3 {[%clk
0:00:54.7]} 43. Kg3 {[%clk 0:00:33.7]} 43... Ne4+ {[%clk 0:00:53.7]} 44. Bxe4
{[%clk 0:00:32.8]} 44... dxe4 {[%clk 0:00:54.6]} 45. Rf6 {[%clk 0:00:30.2]}
45... e3 {[%clk 0:00:52.2]} 46. d5 {[%clk 0:00:26.6]} 46... Kxd5 {[%clk
0:00:51.2]} 47. Rf8 {[%clk 0:00:21.5]} 47... e2 {[%clk 0:00:49.5]} 48. Rd8+
{[%clk 0:00:20.8]} 48... Ke4 {[%clk 0:00:49.3]} 49. Kf2 {[%clk 0:00:20.7]} 49...
Rc1 {[%clk 0:00:49]} 0-1

[Event "*** Titled Tuesday Blitz"]
[Site "Chess.com"]
[Date "2020.04.28"]
[Round "6"]
[White "Gahan-MG"]
[Black "okriak"]
[Result "1-0"]
[WhiteElo "2691"]
[BlackElo "2825"]
[TimeControl "180+1"]
[EndTime "11:06:49 PDT"]
[Termination "Gahan-MG won by resignation"]

1. e4 {[%clk 0:03:00.9]} 1... e5 {[%clk 0:02:59.8]} 2. Nf3 {[%clk 0:03:00.6]}
2... Nc6 {[%clk 0:03:00.4]} 3. d4 {[%clk 0:03:00.9]} 3... exd4 {[%clk
0:03:00.1]} 4. Nxd4 {[%clk 0:03:01.8]} 4... Bc5 {[%clk 0:03:00.1]} 5. Nxc6
{[%clk 0:03:01.4]} 5... Qf6 {[%clk 0:02:59.8]} 6. Qd2 {[%clk 0:03:01.7]} 6...
dxc6 {[%clk 0:02:59.3]} 7. Nc3 {[%clk 0:03:02.3]} 7... Qe7 {[%clk 0:02:59.1]} 8.
Bd3 {[%clk 0:03:01.5]} 8... Nf6 {[%clk 0:02:57.4]} 9. O-O {[%clk 0:03:00.3]}
9... Be6 {[%clk 0:02:50.5]} 10. Na4 {[%clk 0:02:53.6]} 10... Bd4 {[%clk
0:02:47.4]} 11. c3 {[%clk 0:02:48.9]} 11... Bb6 {[%clk 0:02:39]} 12. Nxb6 {[%clk
0:02:48.4]} 12... axb6 {[%clk 0:02:38.9]} 13. Qc2 {[%clk 0:02:19.5]} 13... Rd8
{[%clk 0:02:34.9]} 14. Bg5 {[%clk 0:02:17.1]} 14... h6 {[%clk 0:02:34.5]} 15.
Bh4 {[%clk 0:02:16.7]} 15... g5 {[%clk 0:02:27.3]} 16. Bg3 {[%clk 0:02:16.8]}
16... h5 {[%clk 0:02:21.5]} 17. Be5 {[%clk 0:02:03]} 17... Rh6 {[%clk 0:02:21]}
18. Be2 {[%clk 0:01:56.8]} 18... Ng4 {[%clk 0:02:19.1]} 19. Bxg4 {[%clk
0:01:55.3]} 19... hxg4 {[%clk 0:02:18.5]} 20. Rfd1 {[%clk 0:01:52.9]} 20...
Rxd1+ {[%clk 0:02:11.8]} 21. Rxd1 {[%clk 0:01:52.6]} 21... Bd5 {[%clk
0:01:55.6]} 22. exd5 {[%clk 0:01:20.3]} 22... Qxe5 {[%clk 0:01:54.9]} 23. g3
{[%clk 0:01:13.7]} 23... cxd5 {[%clk 0:01:49.3]} 24. Qa4+ {[%clk 0:01:13.6]}
24... Kf8 {[%clk 0:01:44.4]} 25. Qxg4 {[%clk 0:01:13.6]} 25... Re6 {[%clk
0:01:41.5]} 26. Qd4 {[%clk 0:01:10.9]} 26... Qxd4 {[%clk 0:01:41.1]} 27. Rxd4
{[%clk 0:01:11.8]} 27... c6 {[%clk 0:01:41.6]} 28. Kf1 {[%clk 0:01:10.4]} 28...
b5 {[%clk 0:01:41.4]} 29. h4 {[%clk 0:01:10.2]} 29... gxh4 {[%clk 0:01:41.1]}
30. Rxh4 {[%clk 0:01:11.1]} 30... Re8 {[%clk 0:01:37.9]} 31. a4 {[%clk
0:01:09.3]} 31... bxa4 {[%clk 0:01:37.5]} 32. Rxa4 {[%clk 0:01:10.2]} 32... Re7
{[%clk 0:01:34.8]} 33. Ra7 {[%clk 0:01:07.9]} 33... Kg7 {[%clk 0:01:35]} 34. f4
{[%clk 0:01:07.4]} 34... Kf6 {[%clk 0:01:35.3]} 35. Kf2 {[%clk 0:01:07.7]} 35...
Ke6 {[%clk 0:01:33.8]} 36. Kf3 {[%clk 0:01:06.9]} 36... Kd6 {[%clk 0:01:34.3]}
37. g4 {[%clk 0:01:05.3]} 37... Kc7 {[%clk 0:01:34.1]} 38. g5 {[%clk 0:01:03.7]}
38... Kb6 {[%clk 0:01:33.6]} 39. Ra8 {[%clk 0:01:03.8]} 39... Kb5 {[%clk
0:01:33.8]} 40. Rf8 {[%clk 0:01:01.5]} 40... Kc4 {[%clk 0:01:32.6]} 41. f5
{[%clk 0:00:47.2]} 41... Kb3 {[%clk 0:01:26.1]} 42. f6 {[%clk 0:00:47.5]} 42...
Rd7 {[%clk 0:01:15.6]} 43. Re8 {[%clk 0:00:45.1]} 43... d4 {[%clk 0:01:14.4]}
44. cxd4 {[%clk 0:00:43.1]} 44... Kxb2 {[%clk 0:01:08.3]} 45. Re7 {[%clk
0:00:42.8]} 45... Rd5 {[%clk 0:01:08.6]} 46. Kf4 {[%clk 0:00:24.4]} 46... b5
{[%clk 0:01:06.1]} 47. Rxf7 {[%clk 0:00:23.5]} 47... b4 {[%clk 0:01:05.2]} 48.
Rb7 {[%clk 0:00:22.1]} 48... b3 {[%clk 0:01:02.5]} 49. f7 {[%clk 0:00:22.4]}
49... Rxd4+ {[%clk 0:01:01.4]} 50. Ke5 {[%clk 0:00:22.7]} 50... Rd8 {[%clk
0:01:01.4]} 51. g6 {[%clk 0:00:23]} 51... c5 {[%clk 0:01:01.7]} 52. g7 {[%clk
0:00:22.8]} 52... c4 {[%clk 0:01:02.1]} 53. f8=Q {[%clk 0:00:23]} 53... Rxf8
{[%clk 0:01:01.7]} 54. gxf8=Q {[%clk 0:00:23.9]} 54... c3 {[%clk 0:01:02.3]} 55.
Qb4 {[%clk 0:00:23.4]} 1-0

[Event "*** Titled Tuesday Blitz"]
[Site "Chess.com"]
[Date "2020.04.28"]
[Round "6"]
[White "KrakenBeast"]
[Black "Vice64"]
[Result "0-1"]
[WhiteElo "2417"]
[BlackElo "2610"]
[TimeControl "180+1"]
[EndTime "11:06:49 PDT"]
[Termination "Vice64 won by checkmate"]

1. Nf3 {[%clk 0:03:00.9]} 1... Nf6 {[%clk 0:02:59.4]} 2. g3 {[%clk 0:03:00.7]}
2... b6 {[%clk 0:02:57.2]} 3. Bg2 {[%clk 0:02:56.7]} 3... Bb7 {[%clk 0:02:57.6]}
4. d3 {[%clk 0:02:57]} 4... e6 {[%clk 0:02:56.9]} 5. e4 {[%clk 0:02:54.2]} 5...
c5 {[%clk 0:02:56.4]} 6. O-O {[%clk 0:02:53.9]} 6... d5 {[%clk 0:02:56.7]} 7. e5
{[%clk 0:02:53.3]} 7... Nfd7 {[%clk 0:02:56.4]} 8. Re1 {[%clk 0:02:52.2]} 8...
Nc6 {[%clk 0:02:56.3]} 9. c3 {[%clk 0:02:51.3]} 9... Be7 {[%clk 0:02:52.8]} 10.
Nbd2 {[%clk 0:02:45.2]} 10... Qc7 {[%clk 0:02:47.9]} 11. Qe2 {[%clk 0:02:44.6]}
11... h6 {[%clk 0:02:44.3]} 12. a3 {[%clk 0:02:43.8]} 12... g5 {[%clk
0:02:42.7]} 13. h3 {[%clk 0:02:27.7]} 13... O-O-O {[%clk 0:02:41.3]} 14. b4
{[%clk 0:02:25.9]} 14... h5 {[%clk 0:02:36.9]} 15. d4 {[%clk 0:02:19.1]} 15...
c4 {[%clk 0:02:34.1]} 16. Nf1 {[%clk 0:02:14.5]} 16... Rdg8 {[%clk 0:02:32.3]}
17. N3h2 {[%clk 0:02:08.4]} 17... Nd8 {[%clk 0:02:29.2]} 18. a4 {[%clk
0:02:06.8]} 18... a6 {[%clk 0:02:27.5]} 19. Ne3 {[%clk 0:02:03]} 19... f6 {[%clk
0:02:24.3]} 20. exf6 {[%clk 0:01:59.8]} 20... Bxf6 {[%clk 0:02:24.5]} 21. Nef1
{[%clk 0:01:58.2]} 21... e5 {[%clk 0:02:17.9]} 22. dxe5 {[%clk 0:01:49.2]} 22...
Bxe5 {[%clk 0:02:17.3]} 23. Bb2 {[%clk 0:01:47.6]} 23... Re8 {[%clk 0:02:14.3]}
24. Qd2 {[%clk 0:01:45.4]} 24... h4 {[%clk 0:02:00.9]} 25. g4 {[%clk 0:01:38.4]}
25... Bf4 {[%clk 0:01:57]} 26. Qd4 {[%clk 0:01:36.3]} 26... Ne6 {[%clk
0:01:51.3]} 27. Qd1 {[%clk 0:01:29.3]} 27... Rhf8 {[%clk 0:01:44.3]} 28. Nf3
{[%clk 0:01:22.6]} 28... Nf6 {[%clk 0:01:36.7]} 29. Nd4 {[%clk 0:01:20.3]} 29...
Nxd4 {[%clk 0:01:26.2]} 30. Qxd4 {[%clk 0:01:21.2]} 30... Be5 {[%clk 0:01:25.6]}
31. Qd2 {[%clk 0:01:18]} 31... Bf4 {[%clk 0:01:22.2]} 32. Qd4 {[%clk 0:01:17.3]}
32... Ne4 {[%clk 0:01:18.3]} 33. Bxe4 {[%clk 0:00:59.4]} 33... dxe4 {[%clk
0:01:18.1]} 34. Ne3 {[%clk 0:00:59.9]} 34... Bh2+ {[%clk 0:01:17.5]} 35. Kg2
{[%clk 0:00:59]} 35... Rd8 {[%clk 0:01:01.8]} 36. Qxc4 {[%clk 0:00:53.5]} 36...
Rd2 {[%clk 0:00:48.2]} 37. Qxc7+ {[%clk 0:00:44]} 37... Kxc7 {[%clk 0:00:48.4]}
38. Nd1 {[%clk 0:00:39]} 38... Bg3 {[%clk 0:00:41.5]} 39. Bc1 {[%clk 0:00:36.1]}
39... e3+ {[%clk 0:00:35.4]} 40. Kf1 {[%clk 0:00:15]} 40... Rdxf2+ {[%clk
0:00:34.3]} 41. Nxf2 {[%clk 0:00:11.7]} 41... Rxf2+ {[%clk 0:00:35.2]} 42. Kg1
{[%clk 0:00:12.6]} 42... Bh2# {[%clk 0:00:34.5]} 0-1